[Event "*** Titled Tuesday Blitz"]
[Site "Chess.com"]
[Date "2020.03.03"]
[Round "9"]
[White "RoelandPruijssers"]
[Black "Zq1"]
[Result "0-1"]
[WhiteElo "2666"]
[BlackElo "2584"]
[TimeControl "180+1"]
[EndTime "14:46:39 PST"]
[Termination "Zq1 won by checkmate"]

1. e4 {[%clk 0:03:00.9]} 1... c5 {[%clk 0:02:58.9]} 2. Nf3 {[%clk 0:03:00.2]}
2... d6 {[%clk 0:02:58.8]} 3. d4 {[%clk 0:02:59.5]} 3... cxd4 {[%clk 0:02:58.6]}
4. Nxd4 {[%clk 0:02:58.4]} 4... Nf6 {[%clk 0:02:58.6]} 5. Nc3 {[%clk 0:02:57.7]}
5... Nc6 {[%clk 0:02:58.6]} 6. f3 {[%clk 0:02:54.5]} 6... Nxd4 {[%clk
0:02:58.2]} 7. Qxd4 {[%clk 0:02:53.9]} 7... g6 {[%clk 0:02:58.3]} 8. Be3 {[%clk
0:02:48.9]} 8... Bg7 {[%clk 0:02:58.2]} 9. Qd2 {[%clk 0:02:49.1]} 9... O-O
{[%clk 0:02:55.5]} 10. O-O-O {[%clk 0:02:49.5]} 10... Be6 {[%clk 0:02:55.2]} 11.
h4 {[%clk 0:02:40.2]} 11... h5 {[%clk 0:02:44.1]} 12. Kb1 {[%clk 0:02:39.3]}
12... Rc8 {[%clk 0:02:43]} 13. g4 {[%clk 0:02:18.3]} 13... Rxc3 {[%clk
0:02:31.5]} 14. Qxc3 {[%clk 0:02:18.6]} 14... hxg4 {[%clk 0:02:09.8]} 15. Bd4
{[%clk 0:02:06]} 15... gxf3 {[%clk 0:02:07.4]} 16. h5 {[%clk 0:02:05.8]} 16...
Qc8 {[%clk 0:01:45.1]} 17. h6 {[%clk 0:01:54]} 17... Qxc3 {[%clk 0:01:28]} 18.
Bxc3 {[%clk 0:01:49.6]} 18... Bh8 {[%clk 0:01:26]} 19. h7+ {[%clk 0:01:19.8]}
19... Nxh7 {[%clk 0:01:24.4]} 20. Bxh8 {[%clk 0:01:18.3]} 20... Kxh8 {[%clk
0:01:24.1]} 21. Rd3 {[%clk 0:01:15.8]} 21... Bg4 {[%clk 0:01:13.2]} 22. Kc1
{[%clk 0:01:11]} 22... Kg7 {[%clk 0:01:11.3]} 23. Kd2 {[%clk 0:01:10.1]} 23...
Nf6 {[%clk 0:01:04.1]} 24. Ke3 {[%clk 0:01:09.3]} 24... Rc8 {[%clk 0:00:52.9]}
25. Rh2 {[%clk 0:01:05.3]} 25... Bh5 {[%clk 0:00:50.2]} 26. Bh3 {[%clk
0:01:03.5]} 26... Ng4+ {[%clk 0:00:46.6]} 27. Bxg4 {[%clk 0:01:02.8]} 27... Bxg4
{[%clk 0:00:47.2]} 28. Ra3 {[%clk 0:00:55.5]} 28... a6 {[%clk 0:00:45.5]} 29.
Rb3 {[%clk 0:00:56]} 29... b5 {[%clk 0:00:44.7]} 30. Rc3 {[%clk 0:00:32.9]}
30... Rxc3+ {[%clk 0:00:43.1]} 31. bxc3 {[%clk 0:00:31.7]} 31... f5 {[%clk
0:00:42.1]} 32. Rh1 {[%clk 0:00:22.6]} 32... Kf6 {[%clk 0:00:33.5]} 33. Rh7
{[%clk 0:00:19.2]} 33... fxe4 {[%clk 0:00:31.9]} 34. Rh4 {[%clk 0:00:15]} 34...
Bf5 {[%clk 0:00:23.2]} 35. Rh8 {[%clk 0:00:15.9]} 35... g5 {[%clk 0:00:22.5]}
36. Ra8 {[%clk 0:00:15.5]} 36... g4 {[%clk 0:00:22]} 37. Kf2 {[%clk 0:00:16.1]}
37... Ke5 {[%clk 0:00:21.5]} 38. Ke3 {[%clk 0:00:15.8]} 38... g3 {[%clk
0:00:21]} 39. Rg8 {[%clk 0:00:15.8]} 39... g2 {[%clk 0:00:20.3]} 40. c4 {[%clk
0:00:14.6]} 40... bxc4 {[%clk 0:00:19.8]} 41. c3 {[%clk 0:00:15.2]} 41... d5
{[%clk 0:00:19.9]} 42. a3 {[%clk 0:00:14.9]} 42... Kf6 {[%clk 0:00:19.7]} 43.
Rg3 {[%clk 0:00:14.1]} 43... e5 {[%clk 0:00:19.2]} 44. Rg8 {[%clk 0:00:12.1]}
44... d4+ {[%clk 0:00:19.1]} 45. cxd4 {[%clk 0:00:12.2]} 45... exd4+ {[%clk
0:00:19.4]} 46. Kf4 {[%clk 0:00:12.3]} 46... f2 {[%clk 0:00:18]} 47. Rf8+ {[%clk
0:00:08.1]} 47... Ke7 {[%clk 0:00:17.7]} 48. Kxf5 {[%clk 0:00:09]} 48... f1=Q+
{[%clk 0:00:16.6]} 49. Ke5 {[%clk 0:00:09.9]} 49... Qxf8 {[%clk 0:00:15.8]} 50.
a4 {[%clk 0:00:10.8]} 50... c3 {[%clk 0:00:15.4]} 51. Kxe4 {[%clk 0:00:11.6]}
51... c2 {[%clk 0:00:15.2]} 52. Kd5 {[%clk 0:00:11.8]} 52... c1=Q {[%clk
0:00:14.8]} 53. a5 {[%clk 0:00:12.7]} 53... g1=Q {[%clk 0:00:13.1]} 54. Ke4
{[%clk 0:00:11.7]} 54... Qf6 {[%clk 0:00:12.8]} 55. Kd5 {[%clk 0:00:11.8]} 55...
Qe6# {[%clk 0:00:11.3]} 0-1

[Event "*** Titled Tuesday Blitz"]
[Site "Chess.com"]
[Date "2020.03.03"]
[Round "9"]
[White "Hrant_ChessMood"]
[Black "Art_Vandelay1980"]
[Result "1-0"]
[WhiteElo "2952"]
[BlackElo "2786"]
[TimeControl "180+1"]
[EndTime "14:46:43 PST"]
[Termination "Hrant_ChessMood won on time"]

1. d4 {[%clk 0:03:00.9]} 1... Nf6 {[%clk 0:02:59.7]} 2. c4 {[%clk 0:03:00]} 2...
e6 {[%clk 0:03:00.1]} 3. Nc3 {[%clk 0:02:56.4]} 3... Bb4 {[%clk 0:02:59]} 4. f3
{[%clk 0:02:55.3]} 4... c5 {[%clk 0:02:45.3]} 5. d5 {[%clk 0:02:55]} 5... O-O
{[%clk 0:02:44]} 6. e4 {[%clk 0:02:55.2]} 6... d6 {[%clk 0:02:43]} 7. Ne2 {[%clk
0:02:52.4]} 7... a6 {[%clk 0:02:40]} 8. Ng3 {[%clk 0:02:51.5]} 8... exd5 {[%clk
0:02:33.5]} 9. cxd5 {[%clk 0:02:50.3]} 9... b5 {[%clk 0:02:31.7]} 10. Be2 {[%clk
0:02:49.1]} 10... c4 {[%clk 0:02:27.9]} 11. Be3 {[%clk 0:02:46.7]} 11... Nbd7
{[%clk 0:02:26.5]} 12. a4 {[%clk 0:02:41.1]} 12... Bb7 {[%clk 0:02:24]} 13. O-O
{[%clk 0:02:36.3]} 13... Bc5 {[%clk 0:02:21.8]} 14. Qd2 {[%clk 0:01:59.2]} 14...
Qb6 {[%clk 0:02:17.3]} 15. Nf5 {[%clk 0:01:43.3]} 15... Rfe8 {[%clk 0:01:34.1]}
16. a5 {[%clk 0:01:38.6]} 16... Bxe3+ {[%clk 0:01:28.1]} 17. Qxe3 {[%clk
0:01:34]} 17... Qxe3+ {[%clk 0:01:27.6]} 18. Nxe3 {[%clk 0:01:34.5]} 18... b4
{[%clk 0:01:27]} 19. Ncd1 {[%clk 0:01:10.4]} 19... c3 {[%clk 0:01:11.2]} 20.
bxc3 {[%clk 0:01:10.2]} 20... b3 {[%clk 0:01:11]} 21. Rb1 {[%clk 0:01:05.6]}
21... Nc5 {[%clk 0:01:10.7]} 22. Bc4 {[%clk 0:01:04.5]} 22... Rab8 {[%clk
0:01:08.5]} 23. Nf2 {[%clk 0:01:01.1]} 23... Bc8 {[%clk 0:01:05.7]} 24. Nd3
{[%clk 0:00:57]} 24... Nfd7 {[%clk 0:00:53]} 25. Nb4 {[%clk 0:00:53.4]} 25...
Ne5 {[%clk 0:00:44]} 26. Bxb3 {[%clk 0:00:53.4]} 26... Rb5 {[%clk 0:00:44.5]}
27. f4 {[%clk 0:00:41.3]} 27... Nxe4 {[%clk 0:00:39.8]} 28. Ba4 {[%clk
0:00:34.9]} 28... Bd7 {[%clk 0:00:22.8]} 29. Bxb5 {[%clk 0:00:30.8]} 29... Bxb5
{[%clk 0:00:23.7]} 30. fxe5 {[%clk 0:00:30.5]} 30... Nxc3 {[%clk 0:00:21.1]} 31.
Rbc1 {[%clk 0:00:24.1]} 31... Ne2+ {[%clk 0:00:20.6]} 32. Kf2 {[%clk 0:00:24.1]}
32... Nxc1 {[%clk 0:00:20.6]} 33. Rxc1 {[%clk 0:00:24.6]} 33... dxe5 {[%clk
0:00:18.3]} 34. Nf5 {[%clk 0:00:24.6]} 34... Rb8 {[%clk 0:00:11.6]} 35. Rc7
{[%clk 0:00:21.7]} 35... g6 {[%clk 0:00:09.5]} 36. Nh6+ {[%clk 0:00:21.2]} 36...
Kg7 {[%clk 0:00:08.7]} 37. Ng4 {[%clk 0:00:20.5]} 37... Re8 {[%clk 0:00:05.1]}
38. d6 {[%clk 0:00:20]} 1-0

[Event "*** Titled Tuesday Blitz"]
[Site "Chess.com"]
[Date "2020.03.03"]
[Round "9"]
[White "rogapa"]
[Black "Indianlad"]
[Result "1/2-1/2"]
[WhiteElo "2745"]
[BlackElo "2927"]
[TimeControl "180+1"]
[EndTime "14:46:54 PST"]
[Termination "Game drawn by repetition"]

1. e4 {[%clk 0:03:00]} 1... c5 {[%clk 0:03:00.2]} 2. Nf3 {[%clk 0:02:59.8]} 2...
d6 {[%clk 0:03:00.6]} 3. d4 {[%clk 0:03:00.2]} 3... cxd4 {[%clk 0:03:01.5]} 4.
Nxd4 {[%clk 0:03:00.9]} 4... Nf6 {[%clk 0:03:02]} 5. Nc3 {[%clk 0:03:01.2]} 5...
a6 {[%clk 0:03:02.6]} 6. Bg5 {[%clk 0:03:01.5]} 6... Nbd7 {[%clk 0:03:00.8]} 7.
Bc4 {[%clk 0:03:00.8]} 7... Qb6 {[%clk 0:02:54.9]} 8. O-O {[%clk 0:02:58.8]}
8... Qc5 {[%clk 0:02:53.7]} 9. Bxf6 {[%clk 0:02:53.9]} 9... Nxf6 {[%clk
0:02:53.5]} 10. Bb3 {[%clk 0:02:52.9]} 10... e6 {[%clk 0:02:53.8]} 11. Kh1
{[%clk 0:02:52.6]} 11... h5 {[%clk 0:02:48.2]} 12. f4 {[%clk 0:02:38.1]} 12...
h4 {[%clk 0:02:47.4]} 13. f5 {[%clk 0:02:32.8]} 13... e5 {[%clk 0:02:37.5]} 14.
Nf3 {[%clk 0:02:30.6]} 14... Be7 {[%clk 0:02:33.5]} 15. Qe2 {[%clk 0:02:26.1]}
15... Nh5 {[%clk 0:02:31.2]} 16. Qf2 {[%clk 0:02:00.5]} 16... Ng3+ {[%clk
0:02:28.6]} 17. Kg1 {[%clk 0:02:00.2]} 17... Nxf1 {[%clk 0:02:26.4]} 18. Kxf1
{[%clk 0:01:58.6]} 18... Qxf2+ {[%clk 0:02:25.5]} 19. Kxf2 {[%clk 0:01:59.5]}
19... Bd7 {[%clk 0:02:25.9]} 20. Rd1 {[%clk 0:01:54.6]} 20... Bc6 {[%clk
0:02:26]} 21. Nd5 {[%clk 0:01:53.7]} 21... Rc8 {[%clk 0:02:25.7]} 22. c3 {[%clk
0:01:49.1]} 22... Bd8 {[%clk 0:02:24]} 23. g4 {[%clk 0:01:45.2]} 23... hxg3+
{[%clk 0:02:23.7]} 24. hxg3 {[%clk 0:01:46.1]} 24... Bxd5 {[%clk 0:02:20.3]} 25.
Bxd5 {[%clk 0:01:45.1]} 25... Bb6+ {[%clk 0:02:19.8]} 26. Kg2 {[%clk 0:01:45.4]}
26... Rc7 {[%clk 0:02:19.5]} 27. g4 {[%clk 0:01:36.5]} 27... Be3 {[%clk
0:02:15.3]} 28. a4 {[%clk 0:01:26.2]} 28... Ke7 {[%clk 0:02:14.3]} 29. g5 {[%clk
0:01:16.7]} 29... b6 {[%clk 0:02:04.7]} 30. Kg3 {[%clk 0:01:15.3]} 30... Rcc8
{[%clk 0:01:32.7]} 31. Kg4 {[%clk 0:01:12.3]} 31... Rb8 {[%clk 0:01:27.4]} 32.
Nh4 {[%clk 0:01:07.7]} 32... Bf2 {[%clk 0:01:21.6]} 33. f6+ {[%clk 0:01:05]}
33... gxf6 {[%clk 0:00:57.9]} 34. Nf5+ {[%clk 0:01:04.4]} 34... Kd7 {[%clk
0:00:53.6]} 35. Bxf7 {[%clk 0:00:55.1]} 35... fxg5 {[%clk 0:00:53.9]} 36. Rxd6+
{[%clk 0:00:54.5]} 36... Kc7 {[%clk 0:00:54.4]} 37. Bd5 {[%clk 0:00:54]} 37...
Rh2 {[%clk 0:00:42.5]} 38. Rc6+ {[%clk 0:00:31.5]} 38... Kd7 {[%clk 0:00:42.3]}
39. Rd6+ {[%clk 0:00:31.5]} 39... Kc7 {[%clk 0:00:36.6]} 40. Rg6 {[%clk
0:00:30.9]} 40... Rd8 {[%clk 0:00:23.6]} 41. Rc6+ {[%clk 0:00:29]} 41... Kb8
{[%clk 0:00:23.5]} 42. Kxg5 {[%clk 0:00:20.4]} 42... Rf8 {[%clk 0:00:21.4]} 43.
Rh6 {[%clk 0:00:10.4]} 43... Rg2+ {[%clk 0:00:21.3]} 44. Kh5 {[%clk 0:00:09.2]}
44... Be1 {[%clk 0:00:20.3]} 45. Rxb6+ {[%clk 0:00:07.8]} 45... Kc7 {[%clk
0:00:20.7]} 46. Rc6+ {[%clk 0:00:07.9]} 46... Kd7 {[%clk 0:00:20.3]} 47. Rd6+
{[%clk 0:00:08.2]} 47... Kc7 {[%clk 0:00:20.8]} 48. Rc6+ {[%clk 0:00:08.6]}
48... Kd8 {[%clk 0:00:20.6]} 49. Rd6+ {[%clk 0:00:08.5]} 49... Ke8 {[%clk
0:00:17.3]} 50. Re6+ {[%clk 0:00:08.5]} 50... Kd7 {[%clk 0:00:17.6]} 51. Rd6+
{[%clk 0:00:08.6]} 51... Kc7 {[%clk 0:00:18.2]} 52. Rc6+ {[%clk 0:00:08.7]}
1/2-1/2

[Event "*** Titled Tuesday Blitz"]
[Site "Chess.com"]
[Date "2020.03.03"]
[Round "9"]
[White "Alopekos"]
[Black "GMKrikor"]
[Result "0-1"]
[WhiteElo "2436"]
[BlackElo "2795"]
[TimeControl "180+1"]
[EndTime "14:46:56 PST"]
[Termination "GMKrikor won by resignation"]

1. e4 {[%clk 0:03:00.9]} 1... c5 {[%clk 0:02:59]} 2. Nc3 {[%clk 0:03:00.6]} 2...
e6 {[%clk 0:02:58.4]} 3. Nge2 {[%clk 0:02:59.9]} 3... a6 {[%clk 0:02:55.8]} 4.
d4 {[%clk 0:03:00.1]} 4... cxd4 {[%clk 0:02:54.5]} 5. Nxd4 {[%clk 0:03:01]} 5...
b5 {[%clk 0:02:55.1]} 6. Bd3 {[%clk 0:03:00.5]} 6... Bb7 {[%clk 0:02:55.4]} 7.
O-O {[%clk 0:03:00.4]} 7... Nc6 {[%clk 0:02:56.1]} 8. Nxc6 {[%clk 0:02:57.9]}
8... Bxc6 {[%clk 0:02:57]} 9. Re1 {[%clk 0:02:53.2]} 9... Bc5 {[%clk 0:02:55.4]}
10. a4 {[%clk 0:02:52.4]} 10... b4 {[%clk 0:02:52.6]} 11. Nd5 {[%clk 0:02:51.5]}
11... Ne7 {[%clk 0:02:49.9]} 12. Qg4 {[%clk 0:02:14]} 12... Ng6 {[%clk 0:01:44]}
13. Qh5 {[%clk 0:02:03]} 13... O-O {[%clk 0:01:33]} 14. Nf6+ {[%clk 0:01:48.9]}
14... Qxf6 {[%clk 0:01:32.4]} 15. Qxc5 {[%clk 0:01:49.8]} 15... a5 {[%clk
0:01:16.4]} 16. Qd6 {[%clk 0:01:37.8]} 16... Qe5 {[%clk 0:00:57.9]} 17. Qxe5
{[%clk 0:01:32.1]} 17... Nxe5 {[%clk 0:00:58.8]} 18. Bf1 {[%clk 0:01:12.6]}
18... f6 {[%clk 0:00:48.7]} 19. b3 {[%clk 0:00:59]} 19... Rfc8 {[%clk
0:00:47.6]} 20. f4 {[%clk 0:00:57.8]} 20... Nf7 {[%clk 0:00:45.4]} 21. Bd3
{[%clk 0:00:51.9]} 21... e5 {[%clk 0:00:41.1]} 22. Kf2 {[%clk 0:00:45.3]} 22...
Kf8 {[%clk 0:00:40.7]} 23. g3 {[%clk 0:00:43.8]} 23... Ke7 {[%clk 0:00:40.9]}
24. Be3 {[%clk 0:00:43.3]} 24... d6 {[%clk 0:00:40.7]} 25. Rad1 {[%clk 0:00:38]}
25... Nd8 {[%clk 0:00:40.4]} 26. fxe5 {[%clk 0:00:30.9]} 26... dxe5 {[%clk
0:00:40.6]} 27. Rd2 {[%clk 0:00:14.2]} 27... Ne6 {[%clk 0:00:39.5]} 28. Red1
{[%clk 0:00:14.5]} 28... Rc7 {[%clk 0:00:36.6]} 29. Bb6 {[%clk 0:00:09.4]} 29...
Rb7 {[%clk 0:00:34.6]} 30. Be3 {[%clk 0:00:09]} 30... Rc8 {[%clk 0:00:34.6]} 31.
Ba6 {[%clk 0:00:08.1]} 31... Rcc7 {[%clk 0:00:31.6]} 32. Bxb7 {[%clk 0:00:07.6]}
32... Rxb7 {[%clk 0:00:28.3]} 33. Rd6 {[%clk 0:00:06.3]} 33... Bxe4 {[%clk
0:00:27.2]} 34. R1d2 {[%clk 0:00:02.9]} 34... Rc7 {[%clk 0:00:27.2]} 35. Ra6
{[%clk 0:00:02.2]} 35... Bxc2 {[%clk 0:00:25.7]} 36. Rxa5 {[%clk 0:00:02.6]}
36... Bxb3 {[%clk 0:00:25.1]} 37. Rb2 {[%clk 0:00:02.8]} 37... Rc2+ {[%clk
0:00:07.8]} 38. Rxc2 {[%clk 0:00:01.9]} 38... Bxc2 {[%clk 0:00:08.7]} 39. Rb5
{[%clk 0:00:02.4]} 39... b3 {[%clk 0:00:09.3]} 40. a5 {[%clk 0:00:03]} 40... Nc7
{[%clk 0:00:08.8]} 41. Rb7 {[%clk 0:00:02.1]} 41... Kd6 {[%clk 0:00:09.4]} 42.
Bc5+ {[%clk 0:00:01.9]} 42... Kc6 {[%clk 0:00:08.9]} 43. a6 {[%clk 0:00:01]}
43... Nxa6 {[%clk 0:00:05.3]} 44. Rb6+ {[%clk 0:00:01.2]} 44... Kxc5 {[%clk
0:00:05.9]} 45. Rxa6 {[%clk 0:00:01.7]} 45... b2 {[%clk 0:00:06.5]} 0-1

[Event "*** Titled Tuesday Blitz"]
[Site "Chess.com"]
[Date "2020.03.03"]
[Round "9"]
[White "Megagigahiper3345"]
[Black "SerGo055"]
[Result "1-0"]
[WhiteElo "2161"]
[BlackElo "2514"]
[TimeControl "180+1"]
[EndTime "14:46:57 PST"]
[Termination "Megagigahiper3345 won by resignation"]

1. d4 {[%clk 0:01:35.5]} 1... Nf6 {[%clk 0:02:59.3]} 2. c4 {[%clk 0:01:34.2]}
2... e6 {[%clk 0:02:59.8]} 3. Nf3 {[%clk 0:01:31.6]} 3... d5 {[%clk 0:02:59.9]}
4. Nc3 {[%clk 0:01:30.6]} 4... c6 {[%clk 0:02:58.5]} 5. e3 {[%clk 0:01:28.6]}
5... Nbd7 {[%clk 0:02:58]} 6. Qc2 {[%clk 0:01:27.7]} 6... Bd6 {[%clk 0:02:58.3]}
7. g4 {[%clk 0:01:27.6]} 7... h6 {[%clk 0:02:53.2]} 8. Bd2 {[%clk 0:01:21.7]}
8... Qe7 {[%clk 0:02:52.9]} 9. O-O-O {[%clk 0:01:13.1]} 9... a6 {[%clk 0:02:52]}
10. Rg1 {[%clk 0:01:07.1]} 10... b5 {[%clk 0:02:51]} 11. c5 {[%clk 0:01:06.9]}
11... Bc7 {[%clk 0:02:50.7]} 12. h4 {[%clk 0:01:05.2]} 12... Nf8 {[%clk
0:02:39.1]} 13. g5 {[%clk 0:01:04.1]} 13... hxg5 {[%clk 0:02:38.7]} 14. hxg5
{[%clk 0:01:05]} 14... N6d7 {[%clk 0:02:38.9]} 15. e4 {[%clk 0:00:58.1]} 15...
dxe4 {[%clk 0:02:27.7]} 16. Nxe4 {[%clk 0:00:53.8]} 16... Bb7 {[%clk 0:02:28]}
17. a4 {[%clk 0:00:48.5]} 17... O-O-O {[%clk 0:02:24.4]} 18. axb5 {[%clk
0:00:48.4]} 18... axb5 {[%clk 0:02:23.8]} 19. Kb1 {[%clk 0:00:47.2]} 19... Ng6
{[%clk 0:02:21.6]} 20. Nd6+ {[%clk 0:00:41]} 20... Bxd6 {[%clk 0:02:19.8]} 21.
cxd6 {[%clk 0:00:41.9]} 21... Qxd6 {[%clk 0:02:20.3]} 22. Bxb5 {[%clk
0:00:42.5]} 22... Nb6 {[%clk 0:02:14.2]} 23. Ba5 {[%clk 0:00:38.9]} 23... Qc7
{[%clk 0:02:14]} 24. Rc1 {[%clk 0:00:35.5]} 24... Ne7 {[%clk 0:02:06.5]} 25. Ne5
{[%clk 0:00:31.7]} 25... Rd6 {[%clk 0:01:53]} 26. Nxf7 {[%clk 0:00:26.5]} 26...
Ned5 {[%clk 0:01:44.8]} 27. Nxd6+ {[%clk 0:00:20.4]} 27... Qxd6 {[%clk
0:01:44.2]} 28. Bxb6 {[%clk 0:00:20.8]} 28... Nxb6 {[%clk 0:01:34.7]} 29. Bxc6
{[%clk 0:00:20.1]} 29... Kb8 {[%clk 0:01:27.7]} 30. Bxb7 {[%clk 0:00:19.8]}
30... Kxb7 {[%clk 0:01:28]} 31. Qe4+ {[%clk 0:00:20.3]} 31... Nd5 {[%clk
0:01:27.3]} 32. Rge1 {[%clk 0:00:20.2]} 32... Re8 {[%clk 0:01:24.2]} 33. Rc5
{[%clk 0:00:20.5]} 33... Qf4 {[%clk 0:00:47.1]} 34. Rxd5 {[%clk 0:00:16.3]}
34... Qxe4+ {[%clk 0:00:45.8]} 35. Rxe4 {[%clk 0:00:10.3]} 35... Rf8 {[%clk
0:00:45.2]} 36. Rxe6 {[%clk 0:00:09]} 36... Rf7 {[%clk 0:00:46]} 37. g6 {[%clk
0:00:07.4]} 37... Rc7 {[%clk 0:00:45.7]} 38. Rc5 {[%clk 0:00:06]} 38... Rd7
{[%clk 0:00:45.6]} 39. Rce5 {[%clk 0:00:05.1]} 39... Rxd4 {[%clk 0:00:45]} 40.
Re7+ {[%clk 0:00:05.3]} 40... Kc6 {[%clk 0:00:45.3]} 41. Rxg7 {[%clk 0:00:05.9]}
41... Rd1+ {[%clk 0:00:45.1]} 42. Kc2 {[%clk 0:00:05.6]} 42... Rf1 {[%clk
0:00:45.9]} 43. Rf5 {[%clk 0:00:05.8]} 43... Kd6 {[%clk 0:00:45.5]} 44. Rf6+
{[%clk 0:00:06.7]} 44... Ke5 {[%clk 0:00:45.5]} 45. Rgf7 {[%clk 0:00:07.6]}
45... Rg1 {[%clk 0:00:45.1]} 46. g7 {[%clk 0:00:08.1]} 46... Rg2 {[%clk
0:00:45.6]} 47. Rf5+ {[%clk 0:00:08.5]} 47... Ke6 {[%clk 0:00:45.3]} 48. R5f6+
{[%clk 0:00:08.9]} 48... Ke5 {[%clk 0:00:45.8]} 49. b4 {[%clk 0:00:09.8]} 49...
Rg4 {[%clk 0:00:45.1]} 50. b5 {[%clk 0:00:10.7]} 50... Rxg7 {[%clk 0:00:43.8]}
51. b6 {[%clk 0:00:11.6]} 51... Rg4 {[%clk 0:00:39.6]} 52. Rc6 {[%clk
0:00:11.5]} 52... Rb4 {[%clk 0:00:39.4]} 53. f4+ {[%clk 0:00:11.7]} 53... Kd5
{[%clk 0:00:39.7]} 54. Rff6 {[%clk 0:00:11.9]} 54... Ke4 {[%clk 0:00:34.4]} 55.
Rfd6 {[%clk 0:00:12.8]} 55... Kxf4 {[%clk 0:00:34.6]} 56. Kc3 {[%clk 0:00:12.6]}
56... Rb1 {[%clk 0:00:34.1]} 57. Kc4 {[%clk 0:00:12.3]} 57... Ke5 {[%clk
0:00:34.1]} 58. Rd8 {[%clk 0:00:12]} 58... Rc1+ {[%clk 0:00:32]} 59. Kb5 {[%clk
0:00:11.6]} 59... Ra1 {[%clk 0:00:32.5]} 60. b7 {[%clk 0:00:11.4]} 60... Rb1+
{[%clk 0:00:32.8]} 61. Ka6 {[%clk 0:00:11.9]} 61... Rb2 {[%clk 0:00:31.8]} 62.
b8=Q+ {[%clk 0:00:11.8]} 62... Rxb8 {[%clk 0:00:30.7]} 63. Rxb8 {[%clk
0:00:12.7]} 63... Kd5 {[%clk 0:00:30.8]} 64. Rc1 {[%clk 0:00:13.6]} 1-0

[Event "*** Titled Tuesday Blitz"]
[Site "Chess.com"]
[Date "2020.03.03"]
[Round "9"]
[White "Fuerza777"]
[Black "boasovietica"]
[Result "1-0"]
[WhiteElo "2231"]
[BlackElo "2450"]
[TimeControl "180+1"]
[EndTime "14:46:57 PST"]
[Termination "Fuerza777 won on time"]

1. d4 {[%clk 0:03:00.9]} 1... Nf6 {[%clk 0:02:59.2]} 2. c4 {[%clk 0:03:00.9]}
2... e6 {[%clk 0:02:59.6]} 3. g3 {[%clk 0:03:01.3]} 3... d5 {[%clk 0:02:59.7]}
4. Nf3 {[%clk 0:03:01.9]} 4... dxc4 {[%clk 0:02:59.4]} 5. Bg2 {[%clk 0:03:01.7]}
5... a6 {[%clk 0:02:59.8]} 6. O-O {[%clk 0:02:59.7]} 6... Nc6 {[%clk 0:02:59.6]}
7. Bg5 {[%clk 0:02:59.8]} 7... Be7 {[%clk 0:02:58.2]} 8. e3 {[%clk 0:02:59.8]}
8... O-O {[%clk 0:02:57.9]} 9. Qc1 {[%clk 0:02:58]} 9... Na5 {[%clk 0:02:53.2]}
10. Ne5 {[%clk 0:02:45.1]} 10... h6 {[%clk 0:02:30]} 11. Bxf6 {[%clk 0:02:43.2]}
11... Bxf6 {[%clk 0:02:30.9]} 12. Nxc4 {[%clk 0:02:43.3]} 12... Nxc4 {[%clk
0:02:30.1]} 13. Qxc4 {[%clk 0:02:43.5]} 13... c6 {[%clk 0:02:27.3]} 14. f4
{[%clk 0:02:40.4]} 14... Bd7 {[%clk 0:02:24.8]} 15. Nc3 {[%clk 0:02:39.6]} 15...
Qb6 {[%clk 0:02:15.1]} 16. Na4 {[%clk 0:02:35.6]} 16... Qa7 {[%clk 0:02:13.5]}
17. Nc5 {[%clk 0:02:33.5]} 17... Rfd8 {[%clk 0:02:12.1]} 18. a4 {[%clk 0:02:25]}
18... a5 {[%clk 0:02:03.6]} 19. Rac1 {[%clk 0:02:19.9]} 19... Be8 {[%clk
0:02:03.2]} 20. Rfd1 {[%clk 0:02:12.9]} 20... Rac8 {[%clk 0:02:02.9]} 21. Ne4
{[%clk 0:02:10.1]} 21... Be7 {[%clk 0:02:02]} 22. Kh1 {[%clk 0:02:02.4]} 22...
b6 {[%clk 0:01:48]} 23. Nf2 {[%clk 0:01:43.7]} 23... c5 {[%clk 0:01:47]} 24. d5
{[%clk 0:01:36.1]} 24... exd5 {[%clk 0:01:34.1]} 25. Bxd5 {[%clk 0:01:36]} 25...
Rd7 {[%clk 0:01:06.1]} 26. e4 {[%clk 0:01:32.1]} 26... Rcd8 {[%clk 0:01:05.2]}
27. Nd3 {[%clk 0:01:21.9]} 27... Bf6 {[%clk 0:01:03.5]} 28. b3 {[%clk
0:01:19.6]} 28... Bd4 {[%clk 0:01:02.9]} 29. Ne1 {[%clk 0:01:11.4]} 29... Qc7
{[%clk 0:00:52.5]} 30. Nf3 {[%clk 0:01:10.9]} 30... Bf6 {[%clk 0:00:46.6]} 31.
Rd3 {[%clk 0:01:10.9]} 31... Kh8 {[%clk 0:00:41.7]} 32. Rcd1 {[%clk 0:01:10.8]}
32... Be7 {[%clk 0:00:41.1]} 33. Ne5 {[%clk 0:01:09]} 33... Rd6 {[%clk
0:00:38.4]} 34. Bxf7 {[%clk 0:01:00]} 34... Rxd3 {[%clk 0:00:26.9]} 35. Rxd3
{[%clk 0:00:59.7]} 35... Rxd3 {[%clk 0:00:26.6]} 36. Qxd3 {[%clk 0:00:59.5]}
36... Bxf7 {[%clk 0:00:15.1]} 37. Nxf7+ {[%clk 0:00:59.4]} 37... Kg8 {[%clk
0:00:13.5]} 38. Ne5 {[%clk 0:00:59.1]} 38... Bf6 {[%clk 0:00:12.3]} 39. Qd5+
{[%clk 0:00:58.7]} 39... Kh7 {[%clk 0:00:12.1]} 40. Ng4 {[%clk 0:00:55.3]} 40...
Bd4 {[%clk 0:00:11.5]} 41. Qf5+ {[%clk 0:00:51.9]} 41... Kh8 {[%clk 0:00:08.6]}
42. Kg2 {[%clk 0:00:47]} 42... c4 {[%clk 0:00:08.1]} 43. bxc4 {[%clk 0:00:39.5]}
43... Qxc4 {[%clk 0:00:08.2]} 44. Qf8+ {[%clk 0:00:30.6]} 44... Kh7 {[%clk
0:00:06.9]} 45. Qf5+ {[%clk 0:00:30.1]} 45... Kg8 {[%clk 0:00:07.1]} 46. Qg6
{[%clk 0:00:27.2]} 46... Kf8 {[%clk 0:00:04.3]} 47. f5 {[%clk 0:00:21.7]} 47...
Qe2+ {[%clk 0:00:03.7]} 48. Kh3 {[%clk 0:00:21.5]} 48... Qxe4 {[%clk 0:00:04]}
49. Qd6+ {[%clk 0:00:17.3]} 49... Kg8 {[%clk 0:00:03.1]} 50. Qg6 {[%clk
0:00:09.5]} 50... Kf8 {[%clk 0:00:01.5]} 51. Qd6+ {[%clk 0:00:09.3]} 51... Kg8
{[%clk 0:00:01.4]} 52. Qd7 {[%clk 0:00:08.5]} 1-0